[Event "European Online Club-ch-D 2021"]
[Site "Online"]
[Date "2021.03.27"]
[Round "8.12"]
[White "Muminova, Nafisa"]
[Black "Guliyev, Namig"]
[Result "0-1"]
[ECO "D00"]
[WhiteElo "2274"]
[BlackElo "2538"]
[Annotator "ChessBase"]
[PlyCount "84"]
[EventDate "2021.03.27"]
[EventType "team-tourn"]
[EventCountry "NET"]
[SourceTitle "playchess.com"]
[Source "ChessBase"]
[SourceQuality "1"]
[TimeControl "900+5"]

1. d4 {[%emt 0:00:00]} d5 {[%emt 0:00:02]} 2. Nc3 {[%emt 0:00:03]} Nf6 {[%emt 0:00:20]} 3. Bf4 {[%emt 0:00:03]} a6 {[%emt 0:00:01]} 4. e3 {[%emt 0:00:15]} b5 {[%emt 0:00:10]} 5. Nf3 {[%emt 0:00:08]} Bb7 {[%emt 0:00:23]} 6. Ne5 {[%emt 0:00:04]} e6 {[%emt 0:00:08]} 7. g4 {[%emt 0:00:06]} Bb4 {[%emt 0:00:32]} 8. Bg2 {[%emt 0:00:41]} Ne4 {[%emt 0:00:17]} 9. O-O {[%emt 0:00:15]} Nxc3 {[%emt 0:00:13]} 10. bxc3 {[%emt 0:00:02]} Bxc3 {[%emt 0:00:02]} 11. Rb1 {[%emt 0:00:02]} Nd7 {[%emt 0:00:03]} 12. g5 {[%emt 0:00:28]} Nxe5 {[%emt 0:00:18]} 13. dxe5 {[%emt 0:00:02]} c5 {[%emt 0:00:10]} 14. Qg4 {[%emt 0:00:54]} Qc7 {[%emt 0:00:10]} 15. Qg3 {[%emt 0:00:05]} O-O {[%emt 0:00:06]} 16. Rfd1 {[%emt 0:00:38]} b4 {[%emt 0:00:07]} 17. h4 {[%emt 0:00:28]} Rad8 {[%emt 0:00:14]} 18. h5 {[%emt 0:00:03]} d4 {[%emt 0:00:04]} 19. e4 {[%emt 0:00:13]} c4 {[%emt 0:00:10]} 20. h6 {[%emt 0:00:34]} g6 {[%emt 0:00:03]} 21. Qf3 {[%emt 0:00:21]} a5 {[%emt 0:00:06]} 22. Bg3 {[%emt 0:00:07]} Qe7 {[%emt 0:00:04]} 23. Qf4 {[%emt 0:00:58]} Rd7 {[%emt 0:00:07]} 24. Bf1 {[%emt 0:00:07]} Ba6 {[%emt 0:00:10]} 25. f3 {[%emt 0:00:33]} d3 {[%emt 0:00:17]} 26. cxd3 {[%emt 0:00:03]} cxd3 {[%emt 0:00:01]} 27. Kh2 {[%emt 0:00:06]} Bc4 {[%emt 0:00:12]} 28. Rbc1 {[%emt 0:00:12]} d2 {[%emt 0:00:21]} 29. Bxc4 {[%emt 0:00:14]} dxc1=Q {[%emt 0:00:03]} 30. Qxc1 {[%emt 0:00:05]} Rxd1 {[%emt 0:00:07]} 31. Qxd1 {[%emt 0:00:05]} Qxg5 {[%emt 0:00:01]} 32. f4 {[%emt 0:00:12]} Rd8 {[%emt 0:00:10]} 33. Qf3 {[%emt 0:00:27]} Qxh6+ {[%emt 0:00:03]} 34. Kg1 {[%emt 0:00:07]} Qf8 {[%emt 0:00:03]} 35. Bf2 {[%emt 0:01:08]} Bd4 {[%emt 0:00:07]} 36. f5 {[%emt 0:00:17]} gxf5 {[%emt 0:00:16]} 37. exf5 {[%emt 0:00:08]} Bxf2+ {[%emt 0:00:02]} 38. Qxf2 {[%emt 0:00:17]} Qg7+ {[%emt 0:00:01]} 39. Kf1 {[%emt 0:01:31]} Rd1+ {[%emt 0:00:05]} 40. Ke2 {[%emt 0:00:06]} Qg4+ {[%emt 0:00:02]} 41. Ke3 {[%emt 0:00:12]} exf5 {[%emt 0:00:40]} 42. e6 {[%emt 0:00:42]} Qe4# {[%emt 0:00:03]} 0-1

[Event "European Online Club-ch-D 2021"]
[Site "Online"]
[Date "2021.03.27"]
[Round "8.13"]
[White "Lupulescu, Constantin"]
[Black "Roubalik, Jakub"]
[Result "1-0"]
[ECO "A13"]
[WhiteElo "2656"]
[BlackElo "2391"]
[Annotator "ChessBase"]
[PlyCount "143"]
[EventDate "2021.03.27"]
[EventType "team-tourn"]
[EventCountry "NET"]
[SourceTitle "playchess.com"]
[Source "ChessBase"]
[SourceQuality "1"]
[TimeControl "900+5"]

1. Nf3 {[%emt 0:00:00]} d5 {[%emt 0:00:07]} 2. e3 {[%emt 0:00:04]} Nf6 {[%emt 0:00:05]} 3. c4 {[%emt 0:00:02]} e6 {[%emt 0:00:08]} 4. b3 {[%emt 0:00:01]} Be7 {[%emt 0:00:27]} 5. Bb2 {[%emt 0:00:03]} a5 {[%emt 0:00:07]} 6. Nc3 {[%emt 0:00:09]} c6 {[%emt 0:00:15]} 7. d4 {[%emt 0:00:14]} O-O {[%emt 0:01:48]} 8. Bd3 {[%emt 0:00:04]} c5 {[%emt 0:00:18]} 9. cxd5 {[%emt 0:01:05]} exd5 {[%emt 0:00:05]} 10. O-O {[%emt 0:00:36]} Bg4 {[%emt 0:00:27]} 11. dxc5 {[%emt 0:00:10]} Bxc5 {[%emt 0:00:13]} 12. Rc1 {[%emt 0:00:27]} Be7 {[%emt 0:02:04]} 13. h3 {[%emt 0:00:31]} Bh5 {[%emt 0:00:04]} 14. Be2 {[%emt 0:00:14]} Nc6 {[%emt 0:00:06]} 15. Nd4 {[%emt 0:02:19]} Bxe2 {[%emt 0:00:06]} 16. Ncxe2 {[%emt 0:00:25]} Qd7 {[%emt 0:00:06]} 17. Ng3 {[%emt 0:01:08]} Nxd4 {[%emt 0:03:18]} 18. Qxd4 {[%emt 0:00:00]} Rfc8 {[%emt 0:00:15]} 19. Qf4 {[%emt 0:01:21]} Qe6 {[%emt 0:03:04]} 20. Nf5 {[%emt 0:00:16]} Bd8 {[%emt 0:00:04]} 21. Rfd1 {[%emt 0:02:31]} g6 {[%emt 0:00:05]} 22. Nh6+ {[%emt 0:01:25]} Kg7 {[%emt 0:01:04]} 23. Ng4 {[%emt 0:00:16]} h5 {[%emt 0:00:03]} 24. Nxf6 {[%emt 0:00:51]} Bxf6 {[%emt 0:00:02]} 25. Bxf6+ {[%emt 0:00:14]} Qxf6 {[%emt 0:00:02]} 26. Qxf6+ {[%emt 0:00:02]} Kxf6 {[%emt 0:00:01]} 27. Rxc8 {[%emt 0:00:01]} Rxc8 {[%emt 0:00:01]} 28. Rxd5 {[%emt 0:00:01]} Rc1+ {[%emt 0:00:42]} 29. Kh2 {[%emt 0:00:02]} a4 {[%emt 0:00:43]} 30. Ra5 {[%emt 0:00:32]} Rc2 {[%emt 0:01:07]} 31. Rxa4 {[%emt 0:00:18]} Rxf2 {[%emt 0:00:03]} 32. Kg3 {[%emt 0:00:01]} Rb2 {[%emt 0:00:04]} 33. h4 {[%emt 0:00:04]} Ke6 {[%emt 0:00:14]} 34. Kf3 {[%emt 0:00:03]} Kd6 {[%emt 0:00:07]} 35. Rf4 {[%emt 0:00:05]} Ke6 {[%emt 0:00:04]} 36. Ra4 {[%emt 0:00:05]} Kd6 {[%emt 0:00:04]} 37. Ra8 {[%emt 0:00:02]} b5 {[%emt 0:00:08]} 38. g3 {[%emt 0:00:02]} Rb1 {[%emt 0:00:07]} 39. Ra7 {[%emt 0:00:08]} Ke6 {[%emt 0:00:02]} 40. Ra5 {[%emt 0:00:08]} Rb2 {[%emt 0:00:05]} 41. Ke4 {[%emt 0:00:05]} Rg2 {[%emt 0:00:06]} 42. Ra6+ {[%emt 0:00:17]} Ke7 {[%emt 0:00:05]} 43. Kf3 {[%emt 0:00:00]} Rb2 {[%emt 0:00:02]} 44. e4 {[%emt 0:00:05]} Rc2 {[%emt 0:00:08]} 45. b4 {[%emt 0:00:13]} Rc4 {[%emt 0:00:08]} 46. a3 {[%emt 0:00:03]} Kd7 {[%emt 0:00:07]} 47. Kf4 {[%emt 0:00:04]} Ke7 {[%emt 0:00:09]} 48. Ke5 {[%emt 0:00:05]} Rc3 {[%emt 0:00:02]} 49. Ra7+ {[%emt 0:00:02]} Kf8 {[%emt 0:00:02]} 50. Kf4 {[%emt 0:00:10]} Ke8 {[%emt 0:00:04]} 51. e5 {[%emt 0:00:14]} Kf8 {[%emt 0:00:09]} 52. e6 {[%emt 0:00:54]} fxe6 {[%emt 0:00:02]} 53. Ke5 {[%emt 0:00:02]} Rxg3 {[%emt 0:00:18]} 54. Kf6 {[%emt 0:00:02]} Ke8 {[%emt 0:00:04]} 55. Kxe6 {[%emt 0:00:02]} Kd8 {[%emt 0:00:01]} 56. Ra5 {[%emt 0:00:12]} Rg4 {[%emt 0:00:04]} 57. Rxb5 {[%emt 0:00:08]} Rxh4 {[%emt 0:00:03]} 58. a4 {[%emt 0:00:24]} Re4+ {[%emt 0:00:03]} 59. Kd6 {[%emt 0:00:07]} Rd4+ {[%emt 0:00:06]} 60. Kc5 {[%emt 0:00:05]} Rg4 {[%emt 0:00:08]} 61. Kd6 {[%emt 0:00:14]} Rd4+ {[%emt 0:00:04]} 62. Ke5 {[%emt 0:00:05]} Rd1 {[%emt 0:00:10]} 63. a5 {[%emt 0:00:10]} h4 {[%emt 0:00:02]} 64. a6 {[%emt 0:00:07]} Kc7 {[%emt 0:00:07]} 65. Rb7+ {[%emt 0:00:04]} Kc8 {[%emt 0:00:05]} 66. b5 {[%emt 0:00:09]} h3 {[%emt 0:00:02]} 67. Rh7 {[%emt 0:00:02]} Rb1 {[%emt 0:00:08]} 68. Kd6 {[%emt 0:00:03]} Rd1+ {[%emt 0:00:06]} 69. Kc6 {[%emt 0:00:02]} Rc1+ {[%emt 0:00:01]} 70. Kb6 {[%emt 0:00:01]} Rc3 {[%emt 0:00:03]} 71. a7 {[%emt 0:00:03]} Ra3 {[%emt 0:00:02]} 72. Rxh3 {[%emt 0:00:02]} 1-0

[Event "European Online Club-ch-D 2021"]
[Site "Online"]
[Date "2021.03.27"]
[Round "8.14"]
[White "Vymazal, Bronislav"]
[Black "Parligras, Mircea-Emilian"]
[Result "1/2-1/2"]
[ECO "C65"]
[WhiteElo "2350"]
[BlackElo "2591"]
[Annotator "ChessBase"]
[PlyCount "83"]
[EventDate "2021.03.27"]
[EventType "team-tourn"]
[EventCountry "NET"]
[SourceTitle "playchess.com"]
[Source "ChessBase"]
[SourceQuality "1"]
[TimeControl "900+5"]

1. e4 {[%emt 0:00:00]} e5 {[%emt 0:00:04]} 2. Nf3 {[%emt 0:00:03]} Nc6 {[%emt 0:00:02]} 3. Bb5 {[%emt 0:00:01]} Nf6 {[%emt 0:00:03]} 4. d3 {[%emt 0:00:11]} Bc5 {[%emt 0:00:05]} 5. Bxc6 {[%emt 0:00:20]} dxc6 {[%emt 0:00:05]} 6. Nbd2 {[%emt 0:00:03]} Be6 {[%emt 0:00:38]} 7. Qe2 {[%emt 0:00:12]} Nd7 {[%emt 0:00:21]} 8. Nc4 {[%emt 0:00:33]} f6 {[%emt 0:00:38]} 9. Be3 {[%emt 0:02:51]} Qe7 {[%emt 0:00:59]} 10. O-O {[%emt 0:00:54]} O-O {[%emt 0:01:02]} 11. d4 {[%emt 0:00:18]} exd4 {[%emt 0:00:08]} 12. Nxd4 {[%emt 0:00:02]} Bxd4 {[%emt 0:00:35]} 13. Bxd4 {[%emt 0:00:04]} Qb4 {[%emt 0:01:20]} 14. b3 {[%emt 0:00:31]} c5 {[%emt 0:02:29]} 15. Be3 {[%emt 0:01:57]} Bxc4 {[%emt 0:00:04]} 16. Qxc4+ {[%emt 0:00:36]} Qxc4 {[%emt 0:00:03]} 17. bxc4 {[%emt 0:00:00]} Rae8 {[%emt 0:01:09]} 18. Rad1 {[%emt 0:00:19]} Rf7 {[%emt 0:00:03]} 19. Rd5 {[%emt 0:03:38]} c6 {[%emt 0:00:59]} 20. Rd3 {[%emt 0:00:42]} Rxe4 {[%emt 0:00:13]} 21. Rfd1 {[%emt 0:00:03]} Ree7 {[%emt 0:00:08]} 22. Ra3 {[%emt 0:00:33]} a6 {[%emt 0:00:37]} 23. Rb1 {[%emt 0:00:10]} Ne5 {[%emt 0:00:20]} 24. Bxc5 {[%emt 0:00:08]} Re8 {[%emt 0:00:37]} 25. Rc3 {[%emt 0:00:25]} Rd7 {[%emt 0:00:11]} 26. h3 {[%emt 0:00:15]} Kf7 {[%emt 0:00:26]} 27. Be3 {[%emt 0:00:08]} b5 {[%emt 0:00:31]} 28. cxb5 {[%emt 0:00:07]} axb5 {[%emt 0:00:13]} 29. Rc5 {[%emt 0:00:55]} Ra8 {[%emt 0:00:44]} 30. Bf4 {[%emt 0:00:12]} Ng6 {[%emt 0:00:03]} 31. Be3 {[%emt 0:00:26]} Ne7 {[%emt 0:00:07]} 32. Rb2 {[%emt 0:00:24]} Rd1+ {[%emt 0:00:10]} 33. Kh2 {[%emt 0:00:02]} Ra1 {[%emt 0:00:02]} 34. c4 {[%emt 0:00:04]} bxc4 {[%emt 0:00:22]} 35. Rb7 {[%emt 0:00:03]} R1xa2 {[%emt 0:01:04]} 36. Rxc6 {[%emt 0:00:05]} Rb2 {[%emt 0:00:31]} 37. Rd7 {[%emt 0:00:13]} Rd8 {[%emt 0:00:07]} 38. Ra7 {[%emt 0:00:11]} Ra2 {[%emt 0:00:21]} 39. Rb7 {[%emt 0:00:09]} Rb2 {[%emt 0:00:03]} 40. Ra7 {[%emt 0:00:04]} Ra2 {[%emt 0:00:01]} 41. Rb7 {[%emt 0:00:12]} Rb2 {[%emt 0:00:02]} 42. Ra7 {[%emt 0:00:03]} 1/2-1/2

[Event "European Online Club-ch-D 2021"]
[Site "Online"]
[Date "2021.03.27"]
[Round "8.15"]
[White "Dolana, Andrei-Theodor"]
[Black "Kusa, Jakub"]
[Result "1-0"]
[ECO "A11"]
[WhiteElo "2359"]
[BlackElo "2336"]
[Annotator "NA"]
[PlyCount "67"]
[EventDate "2021.03.27"]
[EventType "team-tourn"]
[EventCountry "NET"]
[SourceTitle "playchess.com"]
[Source "ChessBase"]
[SourceQuality "1"]
[TimeControl "900+5"]

1. Nf3 {[%emt 0:00:00]} Nf6 {[%emt 0:00:05]} 2. g3 {[%emt 0:00:02]} g6 {[%emt 0:00:03]} 3. b3 {[%emt 0:00:01]} Bg7 {[%emt 0:00:04]} 4. Bb2 {[%emt 0:00:01]} O-O {[%emt 0:00:01]} 5. Bg2 {[%emt 0:00:02]} d5 {[%emt 0:00:10]} 6. c4 {[%emt 0:00:02]} c6 {[%emt 0:00:10]} 7. O-O {[%emt 0:00:09]} Bg4 {[%emt 0:00:25]} 8. d3 {[%emt 0:00:05]} Bxf3 {[%emt 0:00:27]} 9. Bxf3 {[%emt 0:00:01]} e6 {[%emt 0:00:04]} 10. Nd2 {[%emt 0:02:53]} Nbd7 {[%emt 0:00:44]} 11. b4 {[%emt 0:00:02]} a5 {[%emt 0:01:19]} 12. a3 {[%emt 0:00:03]} axb4 {[%emt 0:00:17]} 13. axb4 {[%emt 0:00:01]} Qb6 {[%emt 0:00:05]} 14. Qb3 {[%emt 0:00:09]} Rfd8 {[%emt 0:01:38]} 15. Bc3 {[%emt 0:03:27]} Ne8 {[%emt 0:00:47]} 16. Bg2 {[%emt 0:00:51]} Bxc3 {[%emt 0:01:25]} 17. Qxc3 {[%emt 0:00:03]} Ng7 {[%emt 0:00:03]} 18. Nb3 {[%emt 0:01:10]} Nf5 {[%emt 0:01:46]} 19. e4 {[%emt 0:01:40]} Ne7 {[%emt 0:00:14]} 20. exd5 {[%emt 0:01:33]} cxd5 {[%emt 0:00:07]} 21. c5 {[%emt 0:00:03]} Qc7 {[%emt 0:00:12]} 22. d4 {[%emt 0:00:13]} b6 {[%emt 0:01:43]} 23. b5 {[%emt 0:00:53]} bxc5 {[%emt 0:00:09]} 24. dxc5 {[%emt 0:00:01]} Rab8 {[%emt 0:00:06]} 25. Ra5 {[%emt 0:00:54]} Rdc8 {[%emt 0:00:03]} 26. Rc1 {[%emt 0:00:03]} Nf5 {[%emt 0:00:34]} 27. Qa1 {[%emt 0:00:33]} Qe5 {[%emt 0:01:17]} 28. Qa3 {[%emt 0:01:54]} Nd4 {[%emt 0:00:15]} 29. Nxd4 {[%emt 0:00:01]} Qxd4 {[%emt 0:00:02]} 30. b6 {[%emt 0:00:22]} Ne5 {[%emt 0:00:15]} 31. Bf1 {[%emt 0:00:11]} Nf3+ {[%emt 0:00:11]} 32. Qxf3 {[%emt 0:00:03]} Rxb6 {[%emt 0:00:17]} 33. cxb6 {[%emt 0:00:05]} Rxc1 {[%emt 0:00:03]} 34. b7 {[%emt 0:00:01]} 1-0

[Event "European Online Club-ch-D 2021"]
[Site "Online"]
[Date "2021.03.27"]
[Round "8.16"]
[White "Zeman, Matyas"]
[Black "Gavrilescu, David"]
[Result "1/2-1/2"]
[ECO "B13"]
[WhiteElo "2261"]
[BlackElo "2476"]
[Annotator "ChessBase"]
[PlyCount "140"]
[EventDate "2021.03.27"]
[EventType "team-tourn"]
[EventCountry "NET"]
[SourceTitle "playchess.com"]
[Source "ChessBase"]
[SourceQuality "1"]
[TimeControl "900+5"]

1. d4 {[%emt 0:00:00]} d5 {[%emt 0:00:02]} 2. Bf4 {[%emt 0:00:03]} c5 {[%emt 0:00:02]} 3. e3 {[%emt 0:00:02]} cxd4 {[%emt 0:00:01]} 4. exd4 {[%emt 0:00:01]} Nc6 {[%emt 0:00:00]} 5. c3 {[%emt 0:00:03]} Bf5 {[%emt 0:00:01]} 6. Nd2 {[%emt 0:00:11]} e6 {[%emt 0:00:07]} 7. Ngf3 {[%emt 0:00:18]} Bd6 {[%emt 0:00:10]} 8. Bxd6 {[%emt 0:00:09]} Qxd6 {[%emt 0:00:00]} 9. Be2 {[%emt 0:00:09]} h6 {[%emt 0:00:02]} 10. O-O {[%emt 0:00:05]} Nf6 {[%emt 0:00:02]} 11. Re1 {[%emt 0:00:25]} O-O {[%emt 0:00:19]} 12. Nb3 {[%emt 0:00:23]} Rab8 {[%emt 0:01:02]} 13. a4 {[%emt 0:00:12]} Ne4 {[%emt 0:01:17]} 14. Nfd2 {[%emt 0:00:16]} Nf6 {[%emt 0:01:49]} 15. Nf3 {[%emt 0:00:03]} Rfc8 {[%emt 0:00:27]} 16. h3 {[%emt 0:01:32]} b6 {[%emt 0:00:52]} 17. Ba6 {[%emt 0:01:39]} Rc7 {[%emt 0:00:08]} 18. Ne5 {[%emt 0:00:34]} Ne4 {[%emt 0:00:58]} 19. Nxc6 {[%emt 0:00:02]} Rxc6 {[%emt 0:00:30]} 20. Nc1 {[%emt 0:00:18]} Qf4 {[%emt 0:03:07]} 21. Nd3 {[%emt 0:00:03]} Qh4 {[%emt 0:00:02]} 22. Qf3 {[%emt 0:01:34]} f6 {[%emt 0:00:58]} 23. Qf4 {[%emt 0:00:11]} Qxf4 {[%emt 0:00:13]} 24. Nxf4 {[%emt 0:00:02]} g5 {[%emt 0:00:01]} 25. Nd3 {[%emt 0:00:17]} h5 {[%emt 0:00:01]} 26. Bb5 {[%emt 0:00:26]} Rd6 {[%emt 0:00:31]} 27. Rad1 {[%emt 0:01:26]} h4 {[%emt 0:00:11]} 28. Nb4 {[%emt 0:00:28]} Kf7 {[%emt 0:00:08]} 29. Bd3 {[%emt 0:02:02]} Rg8 {[%emt 0:00:56]} 30. f3 {[%emt 0:00:58]} Ng3 {[%emt 0:00:03]} 31. Bxf5 {[%emt 0:00:00]} Nxf5 {[%emt 0:00:03]} 32. Nd3 {[%emt 0:00:05]} a5 {[%emt 0:00:11]} 33. Kf2 {[%emt 0:00:03]} Rb8 {[%emt 0:00:12]} 34. Ra1 {[%emt 0:00:11]} Rc6 {[%emt 0:00:33]} 35. Ra3 {[%emt 0:00:11]} Nd6 {[%emt 0:00:05]} 36. Rb3 {[%emt 0:01:03]} Nc4 {[%emt 0:00:14]} 37. Re2 {[%emt 0:00:24]} Re8 {[%emt 0:00:08]} 38. Rb5 {[%emt 0:00:14]} Rd6 {[%emt 0:00:02]} 39. Ke1 {[%emt 0:01:38]} e5 {[%emt 0:00:10]} 40. dxe5 {[%emt 0:00:00]} fxe5 {[%emt 0:00:02]} 41. Nf2 {[%emt 0:00:27]} Kg6 {[%emt 0:01:15]} 42. Ng4 {[%emt 0:00:03]} e4 {[%emt 0:01:22]} 43. fxe4 {[%emt 0:00:05]} dxe4 {[%emt 0:00:02]} 44. b3 {[%emt 0:00:16]} Na3 {[%emt 0:00:01]} 45. Re5 {[%emt 0:00:03]} Rxe5 {[%emt 0:00:01]} 46. Nxe5+ {[%emt 0:00:00]} Kf5 {[%emt 0:00:01]} 47. Ng4 {[%emt 0:00:07]} Rd3 {[%emt 0:00:19]} 48. Rf2+ {[%emt 0:00:04]} Ke6 {[%emt 0:00:04]} 49. Rf6+ {[%emt 0:00:03]} Ke7 {[%emt 0:00:05]} 50. Rxb6 {[%emt 0:00:04]} Rxc3 {[%emt 0:00:02]} 51. Ne5 {[%emt 0:00:09]} Rc5 {[%emt 0:00:13]} 52. Ng4 {[%emt 0:00:07]} Nc2+ {[%emt 0:00:09]} 53. Kd2 {[%emt 0:00:03]} Nb4 {[%emt 0:00:02]} 54. Rg6 {[%emt 0:00:09]} Nd5 {[%emt 0:00:08]} 55. Rxg5 {[%emt 0:00:05]} Ke6 {[%emt 0:00:05]} 56. Re5+ {[%emt 0:00:02]} Kd6 {[%emt 0:00:02]} 57. Rxe4 {[%emt 0:00:02]} Rc3 {[%emt 0:00:02]} 58. Rd4 {[%emt 0:00:03]} Rxb3 {[%emt 0:00:03]} 59. Ne3 {[%emt 0:00:02]} Rxe3 {[%emt 0:00:02]} 60. Rxd5+ {[%emt 0:00:02]} Kxd5 {[%emt 0:00:04]} 61. Kxe3 {[%emt 0:00:01]} Ke5 {[%emt 0:00:03]} 62. Kf3 {[%emt 0:00:04]} Kf5 {[%emt 0:00:01]} 63. g4+ {[%emt 0:00:02]} hxg3 {[%emt 0:00:02]} 64. Kxg3 {[%emt 0:00:00]} Kg5 {[%emt 0:00:01]} 65. Kf3 {[%emt 0:00:01]} Kh4 {[%emt 0:00:01]} 66. Ke4 {[%emt 0:00:01]} Kxh3 {[%emt 0:00:00]} 67. Kd5 {[%emt 0:00:00]} Kg4 {[%emt 0:00:01]} 68. Kc5 {[%emt 0:00:01]} Kf5 {[%emt 0:00:01]} 69. Kb5 {[%emt 0:00:00]} Ke6 {[%emt 0:00:01]} 70. Kxa5 {[%emt 0:00:00]} Kd7 {[%emt 0:00:00]} 1/2-1/2

[Event "European Online Club-ch-D 2021"]
[Site "Online"]
[Date "2021.03.27"]
[Round "8.17"]
[White "Bauer, Christian"]
[Black "Gadimbayli, Abdulla"]
[Result "0-1"]
[ECO "A04"]
[WhiteElo "2639"]
[BlackElo "2470"]
[Annotator "ChessBase"]
[PlyCount "148"]
[EventDate "2021.03.27"]
[EventType "team-tourn"]
[EventCountry "NET"]
[SourceTitle "playchess.com"]
[Source "ChessBase"]
[SourceQuality "1"]
[TimeControl "900+5"]

1. e4 {[%emt 0:00:00]} e6 {[%emt 0:00:14]} 2. Qe2 {[%emt 0:00:04]} c5 {[%emt 0:00:02]} 3. Nf3 {[%emt 0:00:02]} Nc6 {[%emt 0:00:01]} 4. d3 {[%emt 0:00:02]} g6 {[%emt 0:00:02]} 5. g3 {[%emt 0:00:01]} Bg7 {[%emt 0:00:01]} 6. Bg2 {[%emt 0:00:00]} Nf6 {[%emt 0:00:02]} 7. O-O {[%emt 0:00:02]} d5 {[%emt 0:00:02]} 8. c3 {[%emt 0:00:08]} O-O {[%emt 0:00:03]} 9. e5 {[%emt 0:00:27]} Nd7 {[%emt 0:00:02]} 10. d4 {[%emt 0:00:04]} b6 {[%emt 0:00:22]} 11. Na3 {[%emt 0:00:26]} cxd4 {[%emt 0:00:24]} 12. cxd4 {[%emt 0:00:03]} Nb4 {[%emt 0:00:02]} 13. Bg5 {[%emt 0:00:16]} Qe8 {[%emt 0:00:34]} 14. Qd2 {[%emt 0:00:23]} a5 {[%emt 0:00:05]} 15. Nb5 {[%emt 0:01:34]} Nxe5 {[%emt 0:03:32]} 16. Nc7 {[%emt 0:00:11]} Qc6 {[%emt 0:00:12]} 17. Nxa8 {[%emt 0:00:25]} Nxf3+ {[%emt 0:01:13]} 18. Bxf3 {[%emt 0:00:01]} Qxa8 {[%emt 0:00:09]} 19. Be7 {[%emt 0:00:29]} Nc6 {[%emt 0:02:27]} 20. Bxf8 {[%emt 0:00:02]} Nxd4 {[%emt 0:00:07]} 21. Bg2 {[%emt 0:00:11]} Kxf8 {[%emt 0:00:09]} 22. Rfd1 {[%emt 0:00:09]} Ba6 {[%emt 0:00:10]} 23. Qe3 {[%emt 0:00:35]} e5 {[%emt 0:01:27]} 24. Rxd4 {[%emt 0:01:00]} exd4 {[%emt 0:00:02]} 25. Qa3+ {[%emt 0:00:28]} Kg8 {[%emt 0:00:05]} 26. Qd6 {[%emt 0:00:05]} d3 {[%emt 0:02:19]} 27. Bxd5 {[%emt 0:01:02]} Qc8 {[%emt 0:00:04]} 28. Rd1 {[%emt 0:01:57]} Qg4 {[%emt 0:02:45]} 29. Rd2 {[%emt 0:04:35]} Bh6 {[%emt 0:00:22]} 30. f4 {[%emt 0:00:51]} Qc8 {[%emt 0:00:11]} 31. Kg2 {[%emt 0:00:41]} Qc1 {[%emt 0:00:15]} 32. Rf2 {[%emt 0:00:11]} Qc5 {[%emt 0:00:09]} 33. Qd7 {[%emt 0:00:23]} Qf8 {[%emt 0:00:02]} 34. Rd2 {[%emt 0:00:20]} Bg7 {[%emt 0:00:04]} 35. Be4 {[%emt 0:00:14]} Qb4 {[%emt 0:00:02]} 36. Qe8+ {[%emt 0:00:10]} Bf8 {[%emt 0:00:04]} 37. Rf2 {[%emt 0:00:06]} Qd4 {[%emt 0:00:11]} 38. Qe5 {[%emt 0:00:15]} Qxe5 {[%emt 0:00:04]} 39. fxe5 {[%emt 0:00:01]} Bc5 {[%emt 0:00:01]} 40. Rd2 {[%emt 0:00:05]} Be3 {[%emt 0:00:02]} 41. Rd1 {[%emt 0:00:02]} d2 {[%emt 0:00:12]} 42. Kf3 {[%emt 0:00:02]} Bh6 {[%emt 0:00:01]} 43. h4 {[%emt 0:00:02]} Kf8 {[%emt 0:00:03]} 44. g4 {[%emt 0:00:02]} Ke7 {[%emt 0:00:02]} 45. g5 {[%emt 0:00:05]} Bg7 {[%emt 0:00:02]} 46. Rxd2 {[%emt 0:00:11]} Bxe5 {[%emt 0:00:01]} 47. Bc6 {[%emt 0:00:10]} Bc8 {[%emt 0:00:06]} 48. Bd5 {[%emt 0:00:05]} f6 {[%emt 0:00:08]} 49. Bg8 {[%emt 0:00:13]} Bb7+ {[%emt 0:00:13]} 50. Kf2 {[%emt 0:00:03]} fxg5 {[%emt 0:00:04]} 51. hxg5 {[%emt 0:00:02]} Bf4 {[%emt 0:00:06]} 52. Re2+ {[%emt 0:00:05]} Kf8 {[%emt 0:00:05]} 53. Bxh7 {[%emt 0:00:03]} Kf7 {[%emt 0:00:05]} 54. Rc2 {[%emt 0:00:14]} Kg7 {[%emt 0:00:09]} 55. Rc4 {[%emt 0:00:03]} Bd6 {[%emt 0:00:01]} 56. Rh4 {[%emt 0:00:05]} Be7 {[%emt 0:00:04]} 57. Bxg6 {[%emt 0:00:10]} Kxg6 {[%emt 0:00:02]} 58. Rh6+ {[%emt 0:00:01]} Kxg5 {[%emt 0:00:01]} 59. Rh7 {[%emt 0:00:02]} Bc5+ {[%emt 0:00:02]} 60. Ke2 {[%emt 0:00:02]} Be4 {[%emt 0:00:02]} 61. Rd7 {[%emt 0:00:03]} Kf4 {[%emt 0:00:02]} 62. a3 {[%emt 0:00:03]} Ke5 {[%emt 0:00:05]} 63. Rd8 {[%emt 0:00:03]} Bd4 {[%emt 0:00:09]} 64. b4 {[%emt 0:00:08]} a4 {[%emt 0:00:08]} 65. Kd2 {[%emt 0:00:08]} Bb2 {[%emt 0:00:06]} 66. Rb8 {[%emt 0:00:03]} Bxa3 {[%emt 0:00:14]} 67. Kc3 {[%emt 0:00:07]} Bc1 {[%emt 0:00:07]} 68. Rxb6 {[%emt 0:00:01]} a3 {[%emt 0:00:01]} 69. Ra6 {[%emt 0:00:16]} Bb2+ {[%emt 0:00:02]} 70. Kb3 {[%emt 0:00:04]} Bd5+ {[%emt 0:00:04]} 71. Kc2 {[%emt 0:00:03]} Kd4 {[%emt 0:00:03]} 72. Kb1 {[%emt 0:00:13]} Kc3 {[%emt 0:00:05]} 73. b5 {[%emt 0:00:06]} a2+ {[%emt 0:00:02]} 74. Rxa2 {[%emt 0:00:02]} Be4# {[%emt 0:00:01]} 0-1